bitfinex/quotes_SOLUSD_20260202
["timestamp","ask_amount","ask_price","bid_price","bid_amount"]
[1770036181059,7.88158481,103.35,103.32,4.15719975]
[1770036181443,12.14873063,103.35,103.32,4.15719975]
[1770036181647,0.28432314,103.36,103.33,4.15719975]
[1770036181648,8.15778292,103.36,103.33,4.15719975]
[1770036182346,7.87345978,103.35,103.32,4.15719975]
[1770036185553,12.43305377,103.36,103.32,4.15719975]
[1770036185854,3.60631396,103.35,103.32,4.15719975]
[1770036186751,12.43305377,103.36,103.32,4.15719975]
[1770036186947,8.15778292,103.36,103.32,4.15719975]
[1770036187150,7.87345978,103.37,103.33,4.15719975]
[1770036187449,7.87345978,103.37,103.34,4.15719975]
[1770036188033,4.41081602,103.36,103.33,66.21309679]
[1770036188555,8.30145312,103.38,103.34,4.41309679]
[1770036188754,8.01712998,103.38,103.34,4.41309679]
[1770036189261,4.69513916,103.39,103.35,4.41309679]
[1770036189435,12.57672397,103.39,103.35,4.41309679]
[1770036189856,8.01712998,103.38,103.35,4.41309679]
[1770036190035,4.41081602,103.36,103.34,61.8]
[1770036190240,8.01712998,103.37,103.34,4.41309679]
[1770036190754,8.01712998,103.37,103.33,61.8]
[1770036190755,8.01712998,103.36,103.33,66.21309679]
[1770036191540,8.01712998,103.37,103.34,4.41309679]
[1770036192959,8.01712998,103.36,103.33,66.21309679]
[1770036193268,4.41081602,103.36,103.33,66.21309679]
[1770036193561,3.60631396,103.37,103.32,3.60631396]
[1770036193562,8.01712998,103.37,103.34,4.41309679]
[1770036194143,4.41081602,103.36,103.34,4.41309679]
[1770036196858,4.41081602,103.35,103.32,66.21309679]
[1770036197040,3.60631396,103.36,103.33,4.41309679]
[1770036197237,8.01712998,103.37,103.33,4.41309679]
[1770036197646,8.01712998,103.37,103.34,4.41309679]
[1770036198563,4.55297759,103.38,103.35,4.41309679]
[1770036199060,8.15929155,103.38,103.35,4.41309679]
[1770036199270,4.41081602,103.37,103.35,4.41309679]
[1770036200464,8.15929155,103.38,103.35,4.41309679]
[1770036200643,4.41081602,103.35,103.33,61.8]
[1770036200850,4.41081602,103.34,103.32,61.8]
[1770036201159,4.30266864,103.34,103.31,4.41309679]
[1770036201341,4.30266864,103.34,103.31,66.21309679]
[1770036201762,7.9089826,103.34,103.31,66.21309679]
[1770036202260,3.60631396,103.34,103.3,4.41309679]
[1770036202965,8.01712998,103.34,103.3,4.41309679]
[1770036203552,8.01712998,103.35,103.31,4.41309679]
[1770036203749,4.41081602,103.35,103.32,4.41309679]
[1770036205868,8.01712998,103.35,103.32,4.41309679]
[1770036206165,3.60631396,103.34,103.32,4.41309679]
[1770036206364,4.41081602,103.33,103.3,4.41309679]
[1770036206550,8.01712998,103.33,103.3,4.41309679]
[1770036207668,4.41081602,103.33,103.3,4.41309679]
[1770036208282,4.41081602,103.33,103.29,4.41309679]
[1770036208458,4.41081602,103.32,103.29,4.41309679]
[1770036210471,8.01712998,103.32,103.29,4.41309679]
[1770036210770,8.01712998,103.33,103.3,4.41309679]
[1770036211773,4.41081602,103.33,103.3,4.41309679]
[1770036213957,4.41081602,103.33,103.3,66.21309679]
[1770036214566,8.01712998,103.33,103.3,66.21309679]
[1770036215376,4.41081602,103.33,103.3,66.21309679]
[1770036216794,4.41081602,103.32,103.3,61.8]
[1770036217657,8.01712998,103.32,103.3,61.8]
[1770036218794,4.36879116,103.31,103.3,61.8]
[1770036219081,7.97510512,103.31,103.29,4.41309679]
[1770036219274,4.36879116,103.3,103.28,0.2]
[1770036219980,7.97510512,103.3,103.28,0.2]
[1770036221070,7.97510512,103.29,103.28,0.2]
[1770036221266,7.97510512,103.29,103.27,62.0]
[1770036221468,7.97510512,103.29,103.27,0.2]
[1770036222185,4.36879116,103.29,103.27,4.49887806]
[1770036223387,7.97510512,103.29,103.27,4.49887806]
[1770036225476,4.36879116,103.29,103.27,4.49887806]
[1770036225793,7.97510512,103.29,103.27,4.49887806]
[1770036226089,4.36879116,103.29,103.27,4.49887806]
[1770036227374,7.97510512,103.29,103.27,4.49887806]
[1770036228682,7.97994602,103.28,103.27,0.2]
[1770036229178,4.37363206,103.28,103.27,0.2]
[1770036229788,3.60631396,103.29,103.27,0.2]
[1770036229997,7.97994602,103.29,103.27,0.2]
[1770036230897,4.37363206,103.29,103.27,0.2]
[1770036231495,7.97994602,103.29,103.27,0.2]
[1770036231793,7.97994602,103.29,103.27,4.3673562]
[1770036231997,7.97994602,103.29,103.27,0.2]
[1770036232993,3.60631396,103.28,103.27,0.2]
[1770036234492,3.60631396,103.29,103.27,0.2]
[1770036234690,4.37363206,103.28,103.27,0.2]
[1770036235399,4.37363206,103.27,103.25,4.3673562]
[1770036235583,7.97994602,103.27,103.25,4.3673562]
[1770036235784,3.60631396,103.27,103.25,4.3673562]
[1770036236098,7.97994602,103.26,103.25,0.2]
[1770036236798,4.6579552,103.25,103.22,4.2673562]
[1770036237002,3.60631396,103.24,103.22,4.2673562]
[1770036237175,7.97994602,103.25,103.22,4.2673562]
[1770036238076,8.26426916,103.23,103.21,0.2]
[1770036238393,3.60631396,103.22,103.19,66.0673562]
[1770036238699,3.60631396,103.22,103.19,4.2673562]
[1770036238700,7.97994602,103.22,103.19,4.2673562]
[1770036239474,3.60631396,103.22,103.19,4.2673562]
[1770036240075,4.37363206,103.25,103.19,4.2673562]
[1770036240281,3.60631396,103.23,103.19,3.70631396]
[1770036240480,3.60631396,103.24,103.21,4.1673562]
[1770036240992,3.60631396,103.23,103.21,4.1673562]
[1770036241501,7.97994602,103.23,103.2,4.1673562]
[1770036241996,3.60631396,103.23,103.2,4.1673562]
[1770036242182,7.97994602,103.23,103.2,4.1673562]
[1770036242384,7.98802002,103.23,103.2,4.1673562]
[1770036242605,7.98802002,103.24,103.2,4.1673562]
[1770036242788,7.98802002,103.23,103.2,4.1673562]
[1770036243287,7.04105758,103.24,103.21,4.1673562]
[1770036243483,3.8987111,103.25,103.21,4.1673562]
[1770036243800,3.61438796,103.24,103.21,4.1673562]
[1770036243985,7.98802002,103.24,103.21,4.1673562]
[1770036244190,3.61438796,103.24,103.21,4.1673562]
[1770036244387,8.27234316,103.25,103.21,4.1673562]
[1770036244796,7.98802002,103.24,103.21,4.1673562]
[1770036245596,3.8987111,103.25,103.22,4.1673562]
[1770036245784,7.98802002,103.25,103.22,65.9673562]
[1770036246294,4.37363206,103.25,103.22,65.9673562]
[1770036246807,7.98802002,103.26,103.23,4.1673562]
[1770036248205,7.86278923,103.25,103.22,66.13763683]
[1770036249191,7.86278923,103.25,103.22,4.33763683]
[1770036250499,7.86278923,103.24,103.21,4.33763683]
[1770036251404,7.86278923,103.24,103.2,61.8]
[1770036251405,7.86278923,103.22,103.2,66.13763683]
[1770036251704,7.86278923,103.22,103.19,66.23763683]
[1770036251904,7.86278923,103.22,103.2,4.33763683]
[1770036252115,3.61438796,103.22,103.2,4.33763683]
[1770036252485,7.86278923,103.22,103.19,66.23763683]
[1770036252683,4.24840127,103.2,103.19,0.1]
[1770036252886,7.04072441,103.14,103.13,0.2]
[1770036253193,4.53272441,103.13,103.11,0.1]
[1770036253388,8.14711237,103.13,103.11,0.1]
[1770036253701,2.508,103.14,103.11,0.1]
[1770036253702,2.508,103.14,103.12,7.95202479]
[1770036253885,21.39718161,103.16,103.14,4.33763683]
[1770036254087,21.39718161,103.16,103.13,4.33763683]
[1770036254594,21.39718161,103.16,103.13,7.95202479]
[1770036255906,21.39718161,103.16,103.13,4.33763683]
[1770036256110,21.39718161,103.16,103.13,7.95202479]
[1770036256403,25.64558288,103.16,103.12,3.61438796]
[1770036258410,25.64558288,103.16,103.12,69.33383662]
[1770036259400,25.64558288,103.16,103.13,3.91944866]
[1770036259609,29.25997084,103.16,103.12,65.71944866]
[1770036259807,18.98363695,103.15,103.13,7.53383662]
[1770036260308,18.98363695,103.15,103.13,3.91944866]
[1770036262312,22.59802491,103.15,103.12,65.71944866]
[1770036262514,9.43070857,103.14,103.12,65.71944866]
[1770036262813,3.35266774,103.14,103.13,3.91944866]
[1770036263491,3.35266774,103.14,103.12,65.41438796]
[1770036263812,3.35266774,103.14,103.12,3.61438796]
[1770036264001,3.35266774,103.14,103.11,61.9]
[1770036264002,3.35266774,103.14,103.13,3.61438796]
[1770036266510,3.35266774,103.14,103.12,3.61438796]
[1770036269801,12.86946883,103.16,103.13,3.61438796]
[1770036270112,8.36946883,103.15,103.13,65.41438796]
[1770036275724,8.36946883,103.15,103.13,61.8]
[1770036276422,12.86946883,103.15,103.13,61.8]
[1770036278027,8.36946883,103.15,103.13,61.8]
[1770036278207,8.36946883,103.15,103.13,65.41438796]
[1770036279703,3.61438796,103.2,103.16,61.8]
[1770036279704,6.08845423,103.2,103.16,61.8]
[1770036280017,6.08845423,103.2,103.17,26.94]
[1770036280222,10.58845423,103.2,103.17,30.55438796]
[1770036281106,10.58845423,103.2,103.18,3.61438796]
[1770036281441,10.58845423,103.2,103.17,30.55438796]
[1770036281608,4.5,103.19,103.16,3.61438796]
[1770036282228,4.5,103.19,103.15,30.55438796]
[1770036282627,4.5,103.19,103.15,3.61438796]
[1770036283706,4.5,103.19,103.16,3.61438796]
[1770036284108,4.5,103.19,103.17,3.61438796]
[1770036285010,6.08845423,103.2,103.18,3.61438796]
[1770036285219,6.08845423,103.2,103.18,2.7259735]
[1770036285728,10.58845423,103.2,103.18,2.7259735]
[1770036285936,6.08845423,103.2,103.18,2.7259735]
[1770036288229,4.5,103.19,103.16,3.61438796]
[1770036292718,6.08845423,103.2,103.17,3.61438796]
[1770036293036,6.08845423,103.2,103.18,3.61438796]
[1770036293235,6.08845423,103.2,103.17,3.61438796]
[1770036294938,10.58845423,103.2,103.17,3.61438796]
[1770036296023,10.58845423,103.2,103.17,65.41438796]
[1770036297340,6.08845423,103.2,103.18,3.61438796]
[1770036297734,6.08845423,103.2,103.19,3.61438796]
[1770036298035,4.5,103.22,103.19,65.41438796]
[1770036298425,4.5,103.22,103.19,61.8]
[1770036298632,4.5,103.21,103.19,61.8]
[1770036300147,4.5,103.2,103.19,61.8]
[1770036300936,4.5,103.2,103.19,46.03680116]
[1770036301947,4.5,103.2,103.17,4.48742764]
[1770036302153,4.39714053,103.19,103.16,50.5242288]
[1770036302440,4.39714053,103.19,103.15,3.61644581]
[1770036302643,4.39714053,103.17,103.14,8.10387345]
[1770036303353,8.1760398,103.2,103.16,4.48742764]
[1770036303645,8.01358634,103.22,103.19,4.48742764]
[1770036303948,8.01358634,103.22,103.18,8.10387345]
[1770036304335,8.01358634,103.21,103.17,4.48742764]
[1770036304536,4.39714053,103.2,103.17,4.48742764]
[1770036305121,8.01358634,103.2,103.16,8.10387345]
[1770036305322,4.39714053,103.19,103.16,4.48742764]
[1770036305722,4.39714053,103.19,103.15,3.61644581]
[1770036305723,4.39714053,103.18,103.15,4.48742764]
[1770036307534,8.01358634,103.18,103.14,8.10387345]
[1770036307737,4.39714053,103.18,103.15,4.48742764]
[1770036308850,4.34224617,103.17,103.14,7.67352144]
[1770036309040,4.34224617,103.17,103.14,69.47352144]
[1770036310451,7.95869198,103.19,103.15,7.67352144]
[1770036310948,4.34224617,103.19,103.16,4.05707563]
[1770036311832,4.34224617,103.19,103.15,4.05707563]
[1770036312041,7.95869198,103.18,103.15,4.05707563]
[1770036312341,4.34224617,103.18,103.15,4.05707563]
[1770036313043,7.95869198,103.19,103.15,7.67352144]
[1770036313426,4.34224617,103.18,103.15,4.05707563]
[1770036313652,4.34224617,103.18,103.15,65.85707563]
[1770036316449,7.95869198,103.18,103.15,65.85707563]
[1770036317146,0.28432314,103.19,103.16,4.05707563]
[1770036317351,7.95869198,103.21,103.17,4.05707563]
[1770036317856,7.95869198,103.19,103.16,61.8]
[1770036318149,7.95869198,103.18,103.16,61.8]
[1770036318353,4.34224617,103.17,103.14,4.05707563]
[1770036318555,4.34224617,103.18,103.15,4.05707563]
[1770036319751,7.95869198,103.19,103.15,4.05707563]
[1770036319960,4.34224617,103.2,103.16,7.67352144]
[1770036320154,7.95869198,103.2,103.16,4.05707563]
[1770036320457,4.34224617,103.17,103.13,4.05707563]
[1770036320670,7.95869198,103.17,103.13,4.05707563]
[1770036320964,4.34224617,103.17,103.14,4.05707563]
[1770036321458,7.95869198,103.17,103.14,4.05707563]
[1770036323047,4.34224617,103.17,103.14,65.85707563]
[1770036323243,4.34224617,103.18,103.15,4.05707563]
[1770036323456,7.95869198,103.19,103.16,4.05707563]
[1770036323656,4.34224617,103.19,103.16,4.05707563]
[1770036323964,4.34224617,103.2,103.17,4.05707563]
[1770036324466,7.95869198,103.2,103.17,4.05707563]
[1770036324660,7.95869198,103.2,103.16,4.05707563]
[1770036324869,3.61644581,103.19,103.16,4.05707563]
[1770036325045,7.95869198,103.19,103.16,4.05707563]
[1770036325244,3.61644581,103.18,103.16,4.05707563]
[1770036325545,7.95869198,103.19,103.16,4.05707563]
[1770036326161,7.95869198,103.17,103.13,4.05707563]
[1770036326460,4.34224617,103.17,103.14,4.05707563]
[1770036326654,7.95869198,103.18,103.14,4.05707563]
[1770036326855,4.34224617,103.18,103.15,4.05707563]
[1770036328951,7.95869198,103.18,103.15,4.05707563]
[1770036331272,7.95869198,103.18,103.15,65.85707563]
[1770036331453,4.34224617,103.18,103.15,65.85707563]
[1770036331654,8.24301512,103.19,103.15,65.85707563]
[1770036332068,4.34224617,103.19,103.16,4.05707563]
[1770036332284,3.61644581,103.21,103.17,4.05707563]
[1770036332763,4.34224617,103.22,103.18,4.05707563]
[1770036332764,7.95869198,103.22,103.18,4.05707563]
[1770036332969,3.61644581,103.21,103.18,4.05707563]
[1770036333271,7.95869198,103.22,103.18,4.05707563]
[1770036333470,7.95869198,103.2,103.17,4.05707563]
[1770036334348,0.28432314,103.23,103.17,4.05707563]
[1770036334349,4.34224617,103.21,103.17,3.61644581]
[1770036334555,4.34224617,103.21,103.18,4.05707563]
[1770036334872,7.95869198,103.21,103.18,4.05707563]
[1770036336163,7.95869198,103.22,103.18,4.05707563]
[1770036339158,8.15030855,103.23,103.19,4.20514365]
[1770036341163,3.61644581,103.22,103.19,4.20514365]
[1770036344483,7.86598541,103.25,103.21,4.20514365]
[1770036344688,4.2495396,103.25,103.22,4.20514365]
[1770036344890,7.86598541,103.25,103.22,4.20514365]
[1770036350288,7.86598541,103.25,103.22,66.00514365]
[1770036350690,4.2495396,103.25,103.22,66.00514365]
[1770036350892,4.2495396,103.25,103.22,4.20514365]
[1770036351089,7.86598541,103.25,103.22,4.20514365]
[1770036352585,7.77973795,103.25,103.22,4.20514365]
[1770036353989,10.47250636,103.26,103.22,4.20514365]
[1770036354191,14.08895217,103.26,103.22,4.20514365]
[1770036354805,7.77973795,103.25,103.22,4.20514365]
[1770036355597,4.16329214,103.25,103.22,4.20514365]
[1770036356193,14.08895217,103.26,103.22,4.20514365]
[1770036356394,6.30921422,103.26,103.24,4.49648273]
[1770036357100,8.43856299,103.29,103.25,4.49648273]
[1770036357395,4.16329214,103.28,103.25,4.49648273]
[1770036358380,7.77973795,103.28,103.25,4.49648273]
[1770036358692,4.16329214,103.28,103.25,4.49648273]
[1770036359404,31.41527085,103.3,103.25,4.49648273]
[1770036359405,12.2550088,103.3,103.26,4.49648273]
[1770036359576,7.77973795,103.29,103.26,4.49648273]
[1770036359975,4.16329214,103.29,103.26,4.49648273]
[1770036360185,4.36329214,103.3,103.26,8.11292854]
[1770036360384,4.36329214,103.3,103.27,8.11292854]
[1770036360784,4.36329214,103.3,103.27,4.49648273]
[1770036361702,0.2,103.3,103.27,8.11292854]
[1770036361882,0.2,103.3,103.27,4.49648273]
[1770036362205,4.16329214,103.28,103.25,4.49648273]
[1770036363001,7.77341874,103.29,103.26,4.49648273]
[1770036363401,4.16329214,103.29,103.26,4.49648273]
[1770036363596,4.36329214,103.3,103.27,4.49648273]
[1770036363781,0.2,103.3,103.28,4.49648273]
[1770036364606,4.36329214,103.31,103.3,4.49648273]
[1770036364607,0.2,103.31,103.3,4.49648273]
[1770036365094,0.2,103.31,103.29,4.49648273]
[1770036365306,0.2,103.31,103.27,3.6101266]
[1770036365604,4.16329214,103.28,103.25,66.29648273]
[1770036365787,7.77341874,103.28,103.25,4.49648273]
[1770036366282,4.16329214,103.29,103.26,8.10660933]
[1770036366587,4.47527085,103.31,103.29,4.49648273]
[1770036366588,0.2,103.31,103.29,4.49648273]
[1770036367096,4.36329214,103.31,103.28,4.49648273]
[1770036368507,7.97341874,103.31,103.28,4.49648273]
[1770036369989,4.36329214,103.31,103.28,4.49648273]
[1770036370191,7.97341874,103.31,103.28,4.49648273]
[1770036371207,4.36329214,103.31,103.28,4.49648273]
[1770036371704,0.2,103.31,103.29,4.49806031]
[1770036372703,7.98345981,103.31,103.28,66.29806031]
[1770036373386,4.17333321,103.3,103.28,61.8]
[1770036373683,7.78345981,103.3,103.28,61.8]
[1770036374005,4.17333321,103.3,103.28,61.8]
[1770036375305,4.17333321,103.3,103.27,4.49806031]
[1770036375504,4.17333321,103.27,103.22,61.8]
[1770036375698,7.78345981,103.26,103.23,4.49806031]
[1770036376024,7.78345981,103.25,103.21,4.49806031]
[1770036376310,7.78345981,103.26,103.22,4.49806031]
[1770036376984,3.6101266,103.25,103.22,4.49806031]
[1770036377200,7.78345981,103.25,103.22,4.49806031]
[1770036377496,7.78345981,103.25,103.21,4.49806031]
[1770036377696,8.7329272,103.27,103.23,4.49806031]
[1770036377901,4.17333321,103.26,103.23,4.49806031]
[1770036378111,7.78345981,103.26,103.22,4.49806031]
[1770036378716,7.78345981,103.26,103.22,8.10818691]
[1770036379018,4.17333321,103.26,103.23,4.49806031]
[1770036379523,7.78345981,103.27,103.23,3.6101266]
[1770036379713,7.78345981,103.27,103.24,4.49806031]
[1770036381126,4.17333321,103.26,103.23,66.29806031]
[1770036382006,4.17333321,103.27,103.24,8.10818691]
[1770036382722,7.78345981,103.27,103.24,4.49806031]
[1770036382897,4.17333321,103.26,103.21,4.49806031]
[1770036383098,7.78345981,103.24,103.21,4.49806031]
[1770036383397,7.78345981,103.24,103.2,3.6101266]
[1770036383597,4.17333321,103.24,103.21,4.49806031]
[1770036384001,7.78345981,103.25,103.21,4.49806031]
[1770036384923,3.6101266,103.24,103.21,4.49806031]
[1770036385225,7.78345981,103.25,103.21,4.49806031]
[1770036385522,7.78345981,103.25,103.22,4.49806031]
[1770036385900,3.6101266,103.24,103.22,4.49806031]
[1770036386523,4.17333321,103.23,103.19,4.49806031]
[1770036386705,7.78345981,103.23,103.19,4.49806031]
[1770036389104,7.78345981,103.24,103.2,4.49806031]
[1770036389802,7.78345981,103.24,103.2,3.6101266]
[1770036390003,7.78345981,103.24,103.21,4.49806031]
[1770036390827,7.78345981,103.25,103.21,4.49806031]
[1770036391002,7.78345981,103.25,103.22,4.49806031]
[1770036391312,7.78345981,103.27,103.23,4.49806031]
[1770036391724,4.17333321,103.26,103.23,4.49806031]
[1770036392204,7.78345981,103.27,103.23,4.49806031]
[1770036392405,7.78345981,103.27,103.24,4.49806031]
[1770036393117,4.17333321,103.29,103.25,4.49806031]
[1770036393310,12.05873066,103.29,103.25,4.49806031]
[1770036393517,4.17333321,103.3,103.27,4.49806031]
[1770036394100,0.2,103.31,103.28,4.49806031]
[1770036394303,4.37333321,103.31,103.28,4.49806031]
[1770036394507,4.37333321,103.31,103.27,8.10818691]
[1770036395121,7.98345981,103.31,103.27,8.10818691]
[1770036395317,4.37333321,103.31,103.28,4.49806031]
[1770036396222,4.17333321,103.3,103.26,4.49806031]
[1770036396402,7.98345981,103.31,103.27,4.49806031]
[1770036397028,4.17333321,103.3,103.27,4.49806031]
[1770036397929,7.78345981,103.3,103.27,4.49806031]
[1770036398132,4.17333321,103.3,103.27,4.49806031]
[1770036398338,7.86550561,103.31,103.27,4.49806031]
[1770036398529,3.8101266,103.31,103.27,4.49806031]
[1770036398843,3.8101266,103.31,103.26,3.6101266]
[1770036398844,7.66550561,103.3,103.26,4.10240452]
[1770036399023,4.05537901,103.29,103.26,65.90240452]
[1770036399534,7.66550561,103.29,103.26,65.90240452]
[1770036399734,4.05537901,103.29,103.26,65.90240452]
[1770036400731,4.05537901,103.28,103.26,61.8]
[1770036401434,7.66550561,103.29,103.26,61.8]
[1770036401631,7.66550561,103.3,103.27,4.10240452]
[1770036402843,4.05537901,103.3,103.27,4.10240452]
[1770036403032,4.05537901,103.3,103.26,69.51253112]
[1770036403544,4.05537901,103.29,103.26,69.51253112]
[1770036403755,4.05537901,103.29,103.26,65.90240452]
[1770036403931,7.66550561,103.29,103.26,65.90240452]
[1770036404445,4.05537901,103.27,103.24,7.71253112]
[1770036404648,7.66550561,103.28,103.25,4.10240452]
[1770036404942,4.05537901,103.28,103.25,4.10240452]
[1770036406137,4.05537901,103.28,103.25,7.71253112]
[1770036406341,4.05537901,103.29,103.26,4.10240452]
[1770036407352,4.47527085,103.31,103.26,4.10240452]
[1770036407632,4.25537901,103.31,103.26,4.10240452]
[1770036407830,7.86550561,103.31,103.28,4.10240452]
[1770036408229,4.05537901,103.3,103.27,7.71253112]
[1770036408532,4.05537901,103.3,103.27,4.10240452]
[1770036408738,4.05537901,103.3,103.26,7.98897693]
[1770036409420,7.66550561,103.3,103.26,7.98897693]
[1770036409620,4.42144946,103.29,103.26,7.98897693]
[1770036409832,4.42144946,103.29,103.26,4.37885033]
[1770036411615,3.6101266,103.3,103.26,4.37885033]
[1770036411616,4.9057726,103.31,103.26,4.37885033]
[1770036411926,0.02854038,103.31,103.29,4.37885033]
[1770036412328,0.02854038,103.31,103.28,7.98897693]
[1770036412527,4.44998984,103.31,103.28,7.98897693]
[1770036413038,4.44998984,103.31,103.27,7.98897693]
[1770036413423,4.44998984,103.31,103.28,4.37885033]
[1770036413641,4.44998984,103.31,103.28,7.98897693]
[1770036414551,4.44998984,103.31,103.28,4.37885033]
[1770036414727,4.42144946,103.3,103.27,4.37885033]
[1770036415146,4.44998984,103.31,103.28,4.37885033]
[1770036415646,4.44998984,103.31,103.28,7.98897693]
[1770036415837,4.44998984,103.31,103.29,4.37885033]
[1770036415838,0.02854038,103.31,103.29,4.37885033]
[1770036416040,0.02854038,103.31,103.29,7.98897693]
[1770036416745,0.02854038,103.31,103.29,69.78897693]
[1770036417341,0.02854038,103.31,103.3,4.37885033]
[1770036417649,0.02854038,103.31,103.3,7.98897693]
[1770036418136,6.12242585,103.32,103.3,7.98897693]
[1770036418137,1.62242585,103.32,103.31,4.37885033]
[1770036418338,1.62242585,103.32,103.31,7.98897693]
[1770036418542,1.62242585,103.32,103.3,3.6101266]
[1770036418850,1.62242585,103.32,103.3,7.98897693]
[1770036421255,0.2,103.36,103.32,3.01018887]
[1770036421550,3.62907979,103.4,103.36,0.28432314]
[1770036421734,4.42144946,103.43,103.39,3.6101266]
[1770036421930,4.42144946,103.43,103.4,3.6101266]
[1770036422126,4.5,103.43,103.39,3.6101266]
[1770036422346,4.7,103.42,103.39,3.6101266]
[1770036423947,4.5,103.41,103.38,3.6101266]
[1770036424554,4.5,103.41,103.38,9.0017436]
[1770036424848,4.5,103.38,103.35,9.0017436]
[1770036425937,4.5,103.38,103.34,9.0017436]
[1770036426252,4.5,103.38,103.35,9.0017436]
[1770036427453,4.5,103.38,103.31,26.9]
[1770036427646,4.5,103.37,103.33,9.0017436]
[1770036428543,4.5,103.37,103.28,75.75723655]
[1770036428544,9.0017436,103.35,103.28,61.8]
[1770036428747,4.5,103.34,103.3,9.0017436]
[1770036429757,4.5,103.34,103.31,9.0017436]
[1770036430958,4.5,103.35,103.33,9.0017436]
[1770036431258,4.5,103.39,103.34,9.0017436]
[1770036431454,4.5,103.39,103.36,9.0017436]
[1770036431836,9.0017436,103.38,103.32,66.01615508]
[1770036432036,4.45820861,103.37,103.33,9.0017436]
[1770036432442,4.45820861,103.37,103.34,9.0017436]
[1770036432743,4.60037018,103.39,103.36,9.0017436]
[1770036433156,4.45820861,103.39,103.37,9.0017436]
[1770036433357,4.45820861,103.41,103.37,9.0017436]
[1770036433657,4.45820861,103.41,103.38,9.0017436]
[1770036433858,0.2,103.42,103.39,9.0017436]
[1770036434053,4.65820861,103.42,103.39,9.0017436]
[1770036434859,4.65820861,103.42,103.38,9.0017436]
[1770036438259,4.45820861,103.4,103.37,9.0017436]
[1770036438566,4.45820861,103.39,103.36,9.0017436]
[1770036438763,4.45820861,103.39,103.35,9.0017436]
[1770036439057,4.45820861,103.39,103.37,9.0017436]
[1770036439258,4.45820861,103.4,103.38,9.0017436]
[1770036439664,0.28432314,103.41,103.38,9.0017436]
[1770036439665,4.45820861,103.41,103.38,9.0017436]
[1770036439964,4.45820861,103.41,103.37,4.21615508]
[1770036440166,4.45820861,103.41,103.37,13.21789868]
[1770036441160,4.45820861,103.41,103.38,9.0017436]
[1770036443488,4.45820861,103.41,103.37,9.0017436]
[1770036444146,4.45820861,103.41,103.38,9.0017436]
[1770036444349,4.45820861,103.41,103.37,4.21615508]
[1770036444350,4.45820861,103.41,103.37,13.21789868]
[1770036445770,4.45820861,103.39,103.36,9.0017436]
[1770036445963,4.45820861,103.39,103.35,61.8]
[1770036445964,4.45820861,103.39,103.35,70.8017436]
[1770036446149,4.45820861,103.39,103.35,9.0017436]
[1770036447070,4.45820861,103.39,103.36,9.0017436]
[1770036447468,9.28606674,103.4,103.36,13.21789868]
[1770036447469,4.74253175,103.4,103.36,13.21789868]
[1770036447656,4.45820861,103.4,103.37,9.0017436]
[1770036450769,4.45820861,103.4,103.36,4.21615508]
[1770036450770,4.45820861,103.4,103.36,13.21789868]
[1770036450980,4.45820861,103.4,103.37,9.0017436]
[1770036451169,4.45820861,103.4,103.37,70.8017436]
[1770036452258,4.45820861,103.4,103.37,61.8]
[1770036452465,4.45820861,103.39,103.37,61.8]
[1770036453272,4.45820861,103.38,103.37,54.95817106]
[1770036453482,4.45820861,103.38,103.37,50.45817106]
[1770036453678,13.4567436,103.39,103.37,50.45817106]
[1770036453864,4.455,103.39,103.37,50.45817106]
[1770036454462,4.455,103.39,103.36,4.21615508]
[1770036454662,0.28432314,103.4,103.37,4.21615508]
[1770036454969,4.73932314,103.4,103.37,4.21615508]
[1770036455369,13.74106674,103.4,103.37,4.21615508]
[1770036455576,13.74106674,103.4,103.36,4.21615508]
[1770036456377,4.73932314,103.4,103.36,13.21789868]
[1770036456880,13.4567436,103.41,103.37,13.21789868]
[1770036457675,13.4567436,103.41,103.37,4.21615508]
[1770036457977,4.14758547,103.4,103.37,4.21615508]
[1770036458172,13.14932907,103.4,103.37,4.21615508]
[1770036458374,4.14758547,103.38,103.34,9.0017436]
[1770036458570,13.14932907,103.38,103.34,13.36269182]
[1770036459188,13.14932907,103.37,103.33,13.36269182]
[1770036459386,13.43365221,103.39,103.35,4.36094822]
[1770036459685,4.14758547,103.38,103.35,4.36094822]
[1770036459986,4.43190861,103.39,103.36,4.36094822]
[1770036460374,13.43365221,103.39,103.35,13.36269182]
[1770036460579,13.43365221,103.39,103.35,4.36094822]
[1770036460797,4.14758547,103.38,103.34,13.36269182]
[1770036461081,4.14758547,103.37,103.33,13.36269182]
[1770036461285,4.14758547,103.37,103.34,4.36094822]
[1770036461484,0.28432314,103.37,103.34,13.36269182]
[1770036461983,4.43190861,103.37,103.34,4.36094822]
[1770036462782,0.28432314,103.37,103.34,13.36269182]
[1770036462972,0.28432314,103.37,103.34,4.36094822]
[1770036464478,4.14758547,103.38,103.35,4.36094822]
[1770036466479,13.43365221,103.39,103.35,13.36269182]
[1770036466785,4.28974704,103.39,103.36,13.36269182]